lending/lending_fUSD_20250516
["ID","MTS","AMOUNT","RATE_DAILY","PERIOD"]
[361260963,1747403436880,-400.0,0.00016438,2]
[361260964,1747403436890,-724.68,0.00016438,2]
[361260965,1747403436900,-151.0,0.00016438,2]
[361260966,1747403436910,-400.0,0.00016438,2]
[361260967,1747403436920,-802.17,0.00016438,2]
[361260968,1747403436929,-400.0,0.00016438,2]
[361260969,1747403436939,-400.0,0.00016438,2]
[361260970,1747403436949,-400.0,0.00016438,2]
[361260971,1747403436958,-410.92,0.00016438,2]
[361260972,1747403436968,-400.0,0.00016438,2]
[361260973,1747403436978,-400.0,0.00016438,2]
[361260974,1747403436988,-528.89,0.00016438,2]
[361260975,1747403436997,-500.38,0.00016438,2]
[361260976,1747403437007,-400.0,0.00016438,2]
[361260977,1747403437017,-400.0,0.00016438,2]
[361260978,1747403437027,-400.0,0.00016438,2]
[361260979,1747403437037,-369.92378984,0.00016438,2]
[361260980,1747403437046,-400.0,0.00016438,2]
[361260981,1747403437056,-611.05,0.00016438,2]
[361260982,1747403437066,-1505.91,0.00016438,2]
[361260983,1747403437076,-412.9723445,0.00016438,2]
[361260984,1747403437086,-554.91,0.00016438,2]
[361260985,1747403437095,-400.0,0.00016438,2]
[361260986,1747403437105,-400.0,0.00016438,2]
[361260987,1747403437115,-400.0,0.00016438,2]
[361260988,1747403437125,-211.45587533,0.00016438,2]
[361260989,1747403437135,-400.0,0.00016438,2]
[361260990,1747403437144,-1744.11,0.00016438,2]
[361260991,1747403437153,-400.0,0.00016438,2]
[361260992,1747403437163,-400.0,0.00016438,2]
[361260993,1747403437174,-400.0,0.00016438,2]
[361260994,1747403437184,-400.0,0.00016438,2]
[361260995,1747403437193,-400.0,0.00016438,2]
[361260996,1747403437202,-400.0,0.00016438,2]
[361260997,1747403437212,-150.99999999,0.00016438,2]
[361260998,1747403437222,-900.06,0.00016438,2]
[361260999,1747403437231,-422.48463142,0.00016438,2]
[361261000,1747403437241,-1034.48,0.00016438,2]
[361261001,1747403437250,-535.49,0.00016438,2]
[361261002,1747403437259,-583.86,0.00016438,2]
[361261003,1747403437269,-400.0,0.00016438,2]
[361261004,1747403437278,-400.0,0.00016438,2]
[361261005,1747403437288,-400.0,0.00016438,2]
[361261006,1747403437297,-400.0,0.00016438,2]
[361261007,1747403437307,-400.0,0.00016438,2]
[361261008,1747403437317,-400.0,0.00016438,2]
[361261009,1747403437326,-400.0,0.00016438,2]
[361261010,1747403437336,-400.0,0.00016438,2]
[361261011,1747403437346,-400.0,0.00016438,2]
[361261012,1747403437356,-400.0,0.00016438,2]
[361261013,1747403437365,-400.0,0.00016438,2]
[361261014,1747403437375,-400.0,0.00016438,2]
[361261015,1747403437384,-400.0,0.00016438,2]
[361261016,1747403437394,-1362.17,0.00016438,2]
[361261017,1747403437404,-408.03677916,0.00016438,2]
[361261018,1747403437414,-400.0,0.00016438,2]
[361261019,1747403437425,-400.0,0.00016438,2]
[361261020,1747403437434,-400.0,0.00016438,2]
[361261021,1747403437444,-1268.83,0.00016438,2]
[361261022,1747403437454,-645.49,0.00016438,2]
[361261023,1747403437464,-904.47,0.00016438,2]
[361261024,1747403437473,-529.23,0.00016438,2]
[361261025,1747403437483,-400.0,0.00016438,2]
[361261026,1747403437493,-400.0,0.00016438,2]
[361261027,1747403437503,-400.0,0.00016438,2]
[361261028,1747403437516,-559.75,0.00016438,2]
[361261029,1747403437527,-425.8998521,0.00016438,2]
[361261030,1747403437536,-400.0,0.00016438,2]
[361261031,1747403437546,-400.0,0.00016438,2]
[361261032,1747403437556,-400.0,0.00016438,2]
[361261033,1747403437565,-168.435855,0.00016438,2]
[361261034,1747403437575,-433.82186065,0.00016438,2]
[361261035,1747403437585,-1043.36,0.00016438,2]
[361261036,1747403437595,-400.0,0.00016438,2]
[361261037,1747403437605,-535.1508525,0.00016438,2]
[361261038,1747403437615,-400.0,0.00016438,2]
[361261039,1747403437625,-895.29,0.00016438,2]
[361261040,1747403437634,-400.0,0.00016438,2]
[361261041,1747403437644,-416.67,0.00016438,2]
[361261042,1747403437653,-400.0,0.00016438,2]
[361261043,1747403437663,-1209.52,0.00016438,2]
[361261044,1747403437673,-400.0,0.00016438,2]
[361261046,1747403437682,-547.14,0.00016438,2]
[361261047,1747403437692,-151.0,0.00016438,2]
[361261048,1747403437701,-1022.99,0.00016438,2]
[361261049,1747403437711,-151.0,0.00016438,2]
[361261050,1747403437720,-151.0,0.00016438,2]
[361261051,1747403437730,-400.0,0.00016438,2]
[361261052,1747403437740,-151.0,0.00016438,2]
[361261053,1747403437749,-990.31,0.00016438,2]
[361261054,1747403437758,-151.0,0.00016438,2]
[361261055,1747403437767,-151.0,0.00016438,2]
[361261056,1747403437777,-679.59,0.00016438,2]
[361261057,1747403437786,-1335.84,0.00016438,2]
[361261058,1747403437795,-400.0,0.00016438,2]
[361261059,1747403437805,-400.0,0.00016438,2]
[361261060,1747403437814,-1000.9,0.00016438,2]
[361261061,1747403437824,-400.0,0.00016438,2]
[361261062,1747403437838,-647.63,0.00016438,2]
[361261063,1747403437847,-400.0,0.00016438,2]
[361261064,1747403437857,-400.0,0.00016438,2]
[361261065,1747403437867,-400.0,0.00016438,2]
[361261066,1747403437877,-537.68,0.00016438,2]
[361261067,1747403437886,-400.0,0.00016438,2]
[361261068,1747403437896,-400.0,0.00016438,2]
[361261069,1747403437907,-400.0,0.00016438,2]
[361261070,1747403437916,-400.0,0.00016438,2]
[361261071,1747403437926,-509.62,0.00016438,2]
[361261072,1747403437937,-1630.36,0.00016438,2]
[361261073,1747403437947,-400.0,0.00016438,2]
[361261074,1747403437957,-400.0,0.00016438,2]
[361261075,1747403437967,-400.0,0.00016438,2]
[361261076,1747403437976,-400.0,0.00016438,2]
[361261077,1747403437986,-400.0,0.00016438,2]
[361261078,1747403437996,-1082.8,0.00016438,2]
[361261079,1747403438006,-513.91927833,0.00016438,2]
[361261080,1747403438016,-936.29,0.00016438,2]
[361261081,1747403438025,-1729.53,0.00016438,2]
[361261082,1747403438034,-400.0,0.00016438,2]
[361261083,1747403438043,-422.89,0.00016438,2]
[361261084,1747403438053,-453.41,0.00016438,2]
[361261085,1747403438062,-400.0,0.00016438,2]
[361261086,1747403438072,-400.0,0.00016438,2]
[361261087,1747403438081,-400.0,0.00016438,2]
[361261088,1747403438091,-400.0,0.00016438,2]
[361261090,1747403438100,-400.0,0.00016438,2]
[361261092,1747403438109,-151.0,0.00016438,2]
[361261093,1747403438118,-151.0,0.00016438,2]
[361261094,1747403438127,-400.0,0.00016438,2]
[361261095,1747403438137,-1106.72,0.00016438,2]
[361261096,1747403438146,-400.0,0.00016438,2]
[361261098,1747403438156,-630.11,0.00016438,2]
[361261100,1747403438165,-151.0,0.00016438,2]
[361261101,1747403438175,-151.0,0.00016438,2]
[361261102,1747403438184,-400.0,0.00016438,2]
[361261103,1747403438193,-428.74,0.00016438,2]
[361261105,1747403438203,-400.0,0.00016438,2]
[361261106,1747403438212,-400.0,0.00016438,2]
[361261108,1747403438221,-400.0,0.00016438,2]
[361261109,1747403438231,-400.0,0.00016438,2]
[361261110,1747403438240,-400.0,0.00016438,2]
[361261111,1747403438249,-690.12,0.00016438,2]
[361261112,1747403438259,-608.21,0.00016438,2]
[361261113,1747403438269,-400.0,0.00016438,2]
[361261114,1747403438278,-1114.04,0.00016438,2]
[361261115,1747403438288,-400.0,0.00016438,2]
[361261116,1747403438298,-400.0,0.00016438,2]
[361261117,1747403438307,-400.0,0.00016438,2]
[361261118,1747403438317,-400.0,0.00016438,2]
[361261119,1747403438327,-465.53484346,0.00016438,2]
[361261120,1747403438336,-400.0,0.00016438,2]
[361261121,1747403438346,-1258.26,0.00016438,2]
[361261122,1747403438355,-400.0,0.00016438,2]
[361261123,1747403438365,-580.85,0.00016438,2]
[361261124,1747403438374,-574.35,0.00016438,2]
[361261125,1747403438384,-414.45,0.00016438,2]
[361261126,1747403438393,-1042.53,0.00016438,2]
[361261127,1747403438402,-400.0,0.00016438,2]
[361261128,1747403438412,-400.0,0.00016438,2]
[361261129,1747403438422,-400.0,0.00016438,2]
[361261130,1747403438432,-400.0,0.00016438,2]
[361261131,1747403438441,-771.07,0.00016438,2]
[361261132,1747403438451,-834.85,0.00016438,2]
[361261133,1747403438461,-318.29964988,0.00016438,2]
[361261134,1747403438470,-1311.17,0.00016438,2]
[361261135,1747403438480,-400.0,0.00016438,2]
[361261136,1747403438490,-400.0,0.00016438,2]
[361261137,1747403438499,-783.43,0.00016438,2]
[361261138,1747403438509,-571.9,0.00016438,2]
[361261139,1747403438518,-525.78779447,0.00016438,2]
[361261140,1747403438528,-384.13323541,0.00016438,2]
[361261141,1747403438537,-400.0,0.00016438,2]
[361261142,1747403438547,-610.45,0.00016438,2]
[361261143,1747403438561,-400.0,0.00016438,2]
[361261144,1747403438571,-561.32,0.00016438,2]
[361261145,1747403438581,-491.08,0.00016438,2]
[361261146,1747403438591,-1178.36,0.00016438,2]
[361261147,1747403438601,-400.0,0.00016438,2]
[361261148,1747403438611,-1311.65,0.00016438,2]
[361261149,1747403438622,-400.0,0.00016438,2]
[361261150,1747403438632,-200.0,0.00016438,2]
[361261151,1747403438642,-589.61,0.00016438,2]
[361261152,1747403438652,-151.0,0.00016438,2]
[361261153,1747403438662,-151.0,0.00016438,2]
[361261154,1747403438672,-151.0,0.00016438,2]
[361261155,1747403438682,-483.01,0.00016438,2]
[361261156,1747403438692,-1062.31,0.00016438,2]
[361261157,1747403438702,-400.0,0.00016438,2]
[361261158,1747403438712,-1128.58,0.00016438,2]
[361261159,1747403438722,-400.0,0.00016438,2]
[361261160,1747403438733,-400.0,0.00016438,2]
[361261161,1747403438743,-772.91,0.00016438,2]
[361261162,1747403438752,-1464.61,0.00016438,2]
[361261163,1747403438762,-400.0,0.00016438,2]
[361261164,1747403438772,-400.0,0.00016438,2]
[361261165,1747403438783,-400.0,0.00016438,2]
[361261166,1747403438793,-536.79,0.00016438,2]
[361261167,1747403438803,-400.0,0.00016438,2]
[361261168,1747403438813,-400.0,0.00016438,2]
[361261169,1747403438823,-151.0,0.00016438,2]
[361261170,1747403438836,-742.01,0.00016438,2]
[361261171,1747403438846,-151.0,0.00016438,2]
[361261172,1747403438856,-400.0,0.00016438,2]
[361261173,1747403438866,-151.0,0.00016438,2]
[361261174,1747403438877,-400.0,0.00016438,2]
[361261175,1747403438887,-657.51,0.00016438,2]
[361261176,1747403438897,-637.06,0.00016438,2]
[361261177,1747403438908,-643.82,0.00016438,2]
[361261178,1747403438918,-400.0,0.00016438,2]
[361261179,1747403438929,-400.0,0.00016438,2]
[361261180,1747403438939,-12500.0,0.00016438,2]
[361261181,1747403438949,-520.72,0.00016438,2]
[361261182,1747403438960,-400.0,0.00016438,2]
[361261183,1747403438970,-400.0,0.00016438,2]
[361261184,1747403438980,-400.0,0.00016438,2]
[361261185,1747403438989,-564.96,0.00016438,2]
[361261186,1747403439000,-616.67,0.00016438,2]
[361261187,1747403439009,-161.94282238,0.00016438,2]
[361261190,1747403441765,-5348.1779212,0.00016438,2]
[361261191,1747403441784,-1984.022037,0.00016438,2]
[361261192,1747403441807,-391.725,0.00016438,2]
[361261193,1747403441818,-1003.24197942,0.00016438,2]
[361261194,1747403442760,-327.44736948,0.00016338,2]
[361261195,1747403442769,-413183.99464531,0.00016438,2]
[361261196,1747403442779,-238.05717762,0.00016438,2]
[361261197,1747403442788,-400.0,0.00016438,2]
[361261198,1747403442798,-400.0,0.00016438,2]
[361261199,1747403442807,-501.94873115,0.00016438,2]
[361261200,1747403442816,-400.0,0.00016438,2]
[361261201,1747403442825,-681.55,0.00016438,2]
[361261203,1747403442838,-560.19,0.00016438,2]
[361261205,1747403442847,-400.0,0.00016438,2]
[361261207,1747403442856,-400.0,0.00016438,2]
[361261209,1747403442866,-500.0,0.00016438,2]
[361261211,1747403442875,-500.0,0.00016438,2]
[361261213,1747403442884,-442.31,0.00016438,2]
[361261215,1747403442893,-1374.01,0.00016438,2]
[361261217,1747403442906,-400.0,0.00016438,2]
[361261219,1747403442915,-400.0,0.00016438,2]
[361261221,1747403442925,-1254.92,0.00016438,2]
[361261223,1747403442935,-400.0,0.00016438,2]
[361261225,1747403442945,-400.0,0.00016438,2]
[361261227,1747403442954,-400.0,0.00016438,2]
[361261229,1747403442964,-400.0,0.00016438,2]
[361261231,1747403442974,-151.0,0.00016438,2]
[361261233,1747403442983,-515.69,0.00016438,2]
[361261235,1747403442992,-1566.12,0.00016438,2]
[361261236,1747403443003,-869.72,0.00016438,2]
[361261237,1747403443012,-151.0,0.00016438,2]
[361261238,1747403443021,-193.09862644,0.00016438,2]
[361261239,1747403443031,-151.0,0.00016438,2]
[361261240,1747403443040,-400.0,0.00016438,2]
[361261241,1747403443049,-445.63,0.00016438,2]
[361261242,1747403443059,-971.6,0.00016438,2]
[361261243,1747403443068,-400.0,0.00016438,2]
[361261244,1747403443078,-400.0,0.00016438,2]
[361261245,1747403443087,-495.29,0.00016438,2]
[361261246,1747403443097,-400.0,0.00016438,2]
[361261247,1747403443106,-151.0,0.00016438,2]
[361261248,1747403443115,-151.0,0.00016438,2]
[361261249,1747403443125,-874.2,0.00016438,2]
[361261250,1747403443134,-400.0,0.00016438,2]
[361261251,1747403443143,-817.89,0.00016438,2]
[361261252,1747403443152,-711.4,0.00016438,2]
[361261253,1747403443163,-400.0,0.00016438,2]
[361261254,1747403443172,-400.0,0.00016438,2]
[361261255,1747403443181,-448.23,0.00016438,2]
[361261256,1747403443191,-1076.1,0.00016438,2]
[361261257,1747403443201,-526.8065255,0.00016438,2]
[361261258,1747403443211,-400.0,0.00016438,2]
[361261259,1747403443221,-400.0,0.00016438,2]
[361261260,1747403443231,-630.58,0.00016438,2]
[361261261,1747403443241,-710.2,0.00016438,2]
[361261262,1747403443250,-426.68,0.00016438,2]
[361261263,1747403443260,-400.0,0.00016438,2]
[361261264,1747403443270,-400.0,0.00016438,2]
[361261265,1747403443280,-151.0,0.00016438,2]
[361261266,1747403443289,-581.52,0.00016438,2]
[361261267,1747403443298,-151.0,0.00016438,2]
[361261268,1747403443309,-151.0,0.00016438,2]
[361261269,1747403443320,-1016.48,0.00016438,2]
[361261270,1747403443330,-400.0,0.00016438,2]
[361261271,1747403443340,-1339.55,0.00016438,2]
[361261272,1747403443350,-532.73,0.00016438,2]
[361261273,1747403443360,-876.36,0.00016438,2]
[361261274,1747403443369,-400.0,0.00016438,2]
[361261275,1747403443379,-400.0,0.00016438,2]
[361261276,1747403443388,-524.79,0.00016438,2]
[361261277,1747403443398,-845.22,0.00016438,2]
[361261278,1747403443407,-1716.84,0.00016438,2]
[361261279,1747403443417,-400.0,0.00016438,2]
[361261280,1747403443427,-2143.73,0.00016438,2]
[361261281,1747403443437,-294.98781008,0.00016438,2]
[361261282,1747403443447,-400.0,0.00016438,2]
[361261284,1747403443457,-400.0,0.00016438,2]
[361261286,1747403443466,-400.0,0.00016438,2]
[361261287,1747403443476,-400.0,0.00016438,2]
[361261288,1747403443486,-400.0,0.00016438,2]
[361261289,1747403443497,-1725.37,0.00016438,2]
[361261290,1747403443507,-462.14,0.00016438,2]
[361261291,1747403443517,-526.71,0.00016438,2]
[361261292,1747403443526,-500.0,0.00016438,2]
[361261293,1747403443537,-494.70867889,0.00016438,2]
[361261294,1747403443546,-400.0,0.00016438,2]
[361261295,1747403443556,-1875.99,0.00016438,2]
[361261296,1747403443565,-405.5032393,0.00016438,2]
[361261297,1747403443574,-486.93,0.00016438,2]
[361261298,1747403443584,-395.24488693,0.00016438,2]
[361261299,1747403443593,-500.0,0.00016438,2]
[361261300,1747403443603,-151.0,0.00016438,2]
[361261301,1747403443612,-575.04,0.00016438,2]
[361261302,1747403443622,-400.0,0.00016438,2]
[361261303,1747403443632,-580.57,0.00016438,2]
[361261304,1747403443641,-151.0,0.00016438,2]
[361261305,1747403443653,-151.0,0.00016438,2]
[361261306,1747403443663,-235.79649271,0.00016438,2]
[361261307,1747403443674,-403.29327868,0.00016438,2]
[361261308,1747403443684,-552.78,0.00016438,2]
[361261309,1747403443694,-215.890149,0.00016438,2]
[361261310,1747403443704,-215.890149,0.00016438,2]
[361261311,1747403443713,-1091.2,0.00016438,2]
[361261312,1747403443723,-215.890149,0.00016438,2]
[361261313,1747403443733,-615.14,0.00016438,2]
[361261314,1747403443742,-151.0,0.00016438,2]
[361261315,1747403443752,-151.0,0.00016438,2]
[361261316,1747403443761,-400.0,0.00016438,2]
[361261317,1747403443771,-151.0,0.00016438,2]
[361261318,1747403443781,-400.0,0.00016438,2]
[361261319,1747403443791,-816.92,0.00016438,2]
[361261320,1747403443801,-215.890149,0.00016438,2]
[361261321,1747403443811,-215.890149,0.00016438,2]
[361261322,1747403443821,-659.23,0.00016438,2]
[361261323,1747403443833,-215.890149,0.00016438,2]
[361261324,1747403443844,-400.0,0.00016438,2]
[361261325,1747403443854,-400.0,0.00016438,2]
[361261326,1747403443863,-400.0,0.00016438,2]
[361261327,1747403443873,-2009.23,0.00016438,2]
[361261328,1747403443883,-400.0,0.00016438,2]
[361261329,1747403443893,-1377.21,0.00016438,2]
[361261330,1747403443903,-811.85,0.00016438,2]
[361261331,1747403443913,-479.75,0.00016438,2]
[361261332,1747403443924,-400.0,0.00016438,2]
[361261333,1747403443934,-151.0,0.00016438,2]
[361261334,1747403443943,-151.0,0.00016438,2]
[361261335,1747403443953,-2189.7,0.00016438,2]
[361261336,1747403443964,-151.0,0.00016438,2]
[361261337,1747403443974,-400.0,0.00016438,2]
[361261338,1747403443984,-1089.23,0.00016438,2]
[361261339,1747403443993,-400.0,0.00016438,2]
[361261340,1747403444002,-400.0,0.00016438,2]
[361261341,1747403444012,-400.0,0.00016438,2]
[361261342,1747403444022,-530.83,0.00016438,2]
[361261343,1747403444032,-530.83,0.00016438,2]
[361261344,1747403444041,-530.83,0.00016438,2]
[361261345,1747403444052,-530.83,0.00016438,2]
[361261346,1747403444062,-530.83,0.00016438,2]
[361261347,1747403444072,-530.83,0.00016438,2]
[361261348,1747403444082,-401.47966043,0.00016438,2]
[361261349,1747403444092,-530.83,0.00016438,2]
[361261350,1747403444102,-400.0,0.00016438,2]
[361261351,1747403444112,-400.0,0.00016438,2]
[361261352,1747403444122,-400.0,0.00016438,2]
[361261353,1747403444133,-151.0,0.00016438,2]
[361261354,1747403444144,-400.0,0.00016438,2]
[361261355,1747403444154,-484.3015501,0.00016438,2]
[361261356,1747403444164,-151.0,0.00016438,2]
[361261357,1747403444178,-400.0,0.00016438,2]
[361261358,1747403444188,-400.0,0.00016438,2]
[361261359,1747403444199,-1259.24,0.00016438,2]
[361261360,1747403444208,-401.20203514,0.00016438,2]
[361261361,1747403444218,-400.0,0.00016438,2]
[361261362,1747403444228,-753.9,0.00016438,2]
[361261363,1747403444238,-400.0,0.00016438,2]
[361261364,1747403444247,-400.0,0.00016438,2]
[361261365,1747403444257,-1519.42,0.00016438,2]
[361261366,1747403444267,-628.71,0.00016438,2]
[361261367,1747403444278,-400.0,0.00016438,2]
[361261368,1747403444288,-400.0,0.00016438,2]
[361261369,1747403444299,-400.0,0.00016438,2]
[361261370,1747403444310,-400.0,0.00016438,2]
[361261371,1747403444321,-1371.93,0.00016438,2]
[361261372,1747403444332,-213.60127422,0.00016438,2]
[361261373,1747403444342,-492.84,0.00016438,2]
[361261374,1747403444351,-400.0,0.00016438,2]
[361261375,1747403444361,-400.0,0.00016438,2]
[361261376,1747403444372,-194.63625805,0.00016438,2]
[361261377,1747403444382,-400.0,0.00016438,2]
[361261378,1747403444393,-400.0,0.00016438,2]
[361261379,1747403444403,-811.09,0.00016438,2]
[361261380,1747403444414,-486.33,0.00016438,2]
[361261381,1747403444426,-378.76817875,0.00016438,2]
[361261382,1747403444436,-1791.57,0.00016438,2]
[361261383,1747403444446,-529.49,0.00016438,2]
[361261384,1747403444457,-2015.92,0.00016438,2]
[361261385,1747403444468,-522.92046522,0.00016438,2]
[361261386,1747403444479,-400.0,0.00016438,2]
[361261387,1747403444489,-400.0,0.00016438,2]
[361261388,1747403444498,-405.51730536,0.00016438,2]
[361261389,1747403444508,-1427.59,0.00016438,2]
[361261390,1747403444518,-400.0,0.00016438,2]
[361261391,1747403444529,-918.62,0.00016438,2]
[361261392,1747403444539,-832.58,0.00016438,2]
[361261393,1747403444549,-680.15,0.00016438,2]
[361261394,1747403444559,-683.62,0.00016438,2]
[361261395,1747403444570,-400.0,0.00016438,2]
[361261396,1747403444580,-400.0,0.00016438,2]
[361261397,1747403444591,-400.0,0.00016438,2]
[361261398,1747403444601,-1060.68,0.00016438,2]
[361261399,1747403444611,-400.0,0.00016438,2]
[361261400,1747403444620,-427.14122745,0.00016438,2]
[361261401,1747403444630,-484.65,0.00016438,2]
[361261402,1747403444639,-400.0,0.00016438,2]
[361261403,1747403444650,-400.0,0.00016438,2]
[361261404,1747403444659,-400.0,0.00016438,2]
[361261405,1747403444670,-400.0,0.00016438,2]
[361261406,1747403444682,-400.0,0.00016438,2]
[361261407,1747403444691,-939.85,0.00016438,2]
[361261408,1747403444701,-400.0,0.00016438,2]
[361261409,1747403444711,-400.0,0.00016438,2]
[361261410,1747403444721,-400.0,0.00016438,2]
[361261411,1747403444731,-1247.65,0.00016438,2]
[361261412,1747403444741,-465.53,0.00016438,2]
[361261413,1747403444750,-400.0,0.00016438,2]
[361261414,1747403444760,-658.0,0.00016438,2]
[361261415,1747403444770,-996.14,0.00016438,2]
[361261416,1747403444779,-400.0,0.00016438,2]
[361261417,1747403444789,-151.0,0.00016438,2]
[361261418,1747403444798,-400.0,0.00016438,2]
[361261419,1747403444808,-400.0,0.00016438,2]
[361261420,1747403444817,-400.0,0.00016438,2]
[361261421,1747403444828,-151.0,0.00016438,2]
[361261422,1747403444840,-400.0,0.00016438,2]
[361261423,1747403444849,-671.19900123,0.00016438,2]
[361261424,1747403444913,-243.29099877,0.00016438,2]
[361261425,1747403444925,-104.66900133,0.00016438,2]
[361261426,1747403444937,-295.33099867,0.00016438,2]
[361261427,1747403444948,-61.12900043,0.00016438,2]
[361261428,1747403445521,-939.30676251,0.00016438,2]
[361261429,1747403445547,-206.66423706,0.00016438,2]
[361261430,1747403445557,-431.28493272,0.00016438,2]
[361261431,1747403445567,-362.05083022,0.00016438,2]
[361261432,1747403445590,-37.94916978,0.00016438,2]
[361261433,1747403445600,-400.0,0.00016438,2]
[361261434,1747403445610,-151.0,0.00016438,2]
[361261435,1747403445622,-528.71,0.00016438,2]
[361261436,1747403445633,-151.0,0.00016438,2]
[361261437,1747403445643,-151.0,0.00016438,2]
[361261438,1747403445652,-400.0,0.00016438,2]
[361261439,1747403445663,-267.8772533,0.00016438,2]
[361261440,1747403445672,-419.52,0.00016438,2]
[361261441,1747403445683,-851.93,0.00016438,2]
[361261442,1747403445693,-400.0,0.00016438,2]
[361261443,1747403445704,-1078.1,0.00016438,2]
[361261444,1747403445714,-400.0,0.00016438,2]
[361261445,1747403445723,-1186.97,0.00016438,2]
[361261446,1747403445733,-501.70729144,0.00016438,2]
[361261447,1747403445743,-400.0,0.00016438,2]
[361261448,1747403445753,-1069.1,0.00016438,2]
[361261449,1747403445763,-400.0,0.00016438,2]
[361261450,1747403445772,-400.0,0.00016438,2]
[361261451,1747403445782,-400.0,0.00016438,2]
[361261452,1747403445791,-400.0,0.00016438,2]
[361261453,1747403445801,-566.5,0.00016438,2]
[361261454,1747403445811,-400.0,0.00016438,2]
[361261455,1747403445821,-400.0,0.00016438,2]
[361261456,1747403445831,-400.0,0.00016438,2]
[361261457,1747403445842,-400.0,0.00016438,2]
[361261458,1747403445851,-151.0,0.00016438,2]
[361261459,1747403445862,-561.61,0.00016438,2]
[361261460,1747403445872,-151.0,0.00016438,2]
[361261461,1747403445883,-151.0,0.00016438,2]
[361261462,1747403445893,-400.0,0.00016438,2]
[361261463,1747403445903,-400.90330484,0.00016438,2]
[361261464,1747403445913,-685.72,0.00016438,2]
[361261465,1747403445923,-400.0,0.00016438,2]
[361261466,1747403445935,-400.0,0.00016438,2]
[361261467,1747403445945,-400.0,0.00016438,2]
[361261468,1747403445955,-400.0,0.00016438,2]
[361261469,1747403445964,-429.72,0.00016438,2]
[361261470,1747403445974,-508.93715235,0.00016438,2]
[361261471,1747403445984,-400.0,0.00016438,2]
[361261472,1747403445994,-400.0,0.00016438,2]
[361261473,1747403446004,-1204.85,0.00016438,2]
[361261474,1747403446015,-400.0,0.00016438,2]
[361261475,1747403446024,-400.0,0.00016438,2]
[361261476,1747403446034,-568.99,0.00016438,2]
[361261477,1747403446044,-400.0,0.00016438,2]
[361261478,1747403446054,-400.0,0.00016438,2]
[361261479,1747403446064,-652.5,0.00016438,2]
[361261480,1747403446076,-391.94827582,0.00016438,2]
[361261481,1747403446086,-400.0,0.00016438,2]
[361261482,1747403446095,-20448.95,0.00016438,2]
[361261483,1747403446105,-448.90257041,0.00016438,2]
[361261484,1747403446115,-400.0,0.00016438,2]
[361261485,1747403446125,-581.86,0.00016438,2]
[361261486,1747403446134,-490.86,0.00016438,2]
[361261487,1747403446145,-400.0,0.00016438,2]
[361261488,1747403446154,-400.0,0.00016438,2]
[361261489,1747403446164,-997.29,0.00016438,2]
[361261490,1747403446174,-400.0,0.00016438,2]